fUSD/lending_fUSD_20260112
["ID","MTS","AMOUNT","RATE_DAILY","PERIOD"]
[401429433,1768205836668,151.0,0.00011996,2]
[401429434,1768205837557,151.0,0.00011996,2]
[401429435,1768205837916,151.0,0.00011996,2]
[401429436,1768205838296,500.0,0.00011996,2]
[401429437,1768205838524,151.0,0.00011996,2]
[401429438,1768205839126,151.0,0.00011996,2]
[401429439,1768205839802,151.0,0.00011996,2]
[401429440,1768205840443,151.0,0.00011996,2]
[401429441,1768205841575,151.0,0.00011996,2]
[401429442,1768205842106,151.0,0.00011996,2]
[401429443,1768205842714,151.0,0.00011996,2]
[401429444,1768205843325,151.0,0.00011996,2]
[401429445,1768205843951,151.0,0.00011996,2]
[401429446,1768205844621,151.0,0.00011996,2]
[401429447,1768205845677,151.0,0.00011996,2]
[401429448,1768205845948,151.0,0.00011996,2]
[401429449,1768205846543,19.38859536,0.00011996,2]
[401429450,1768205846572,131.61140464,0.00011996,2]
[401429451,1768205847241,151.0,0.00011996,2]
[401429452,1768205847937,151.0,0.00011996,2]
[401429453,1768205848588,151.0,0.00011996,2]
[401429454,1768205849234,151.0,0.00011996,2]
[401429455,1768205862501,375.33907788,0.00011896,2]
[401429456,1768205881353,300.0,0.00011995,2]
[401429457,1768205881934,300.0,0.00011995,2]
[401429458,1768205882772,150.0,0.00011995,2]
[401429459,1768205896563,1200.0,0.00011995,2]
[401429460,1768205898881,6939.05951748,0.00011896,2]
[401429461,1768205898912,10000.01,0.00011896,2]
[401429462,1768205898942,1840.63838252,0.00011896,2]
[401429463,1768205899273,8159.37161748,0.00011896,2]
[401429464,1768205899306,2718.00430973,0.00011896,2]
[401429465,1768205900917,7282.00569027,0.00011896,2]
[401429466,1768205900944,8608.21943429,0.00011896,2]
[401429467,1768205980352,268.42305266,0.00011988,2]
[401429468,1768205990493,-90450.0,0.00011996,2]
[401429469,1768206001404,1123.36751305,0.00011995,2]
[401429470,1768206001434,76.63248695,0.00011995,2]
[401429471,1768206004599,248.0,0.00011996,2]
[401429472,1768206004649,250.22605192,0.00011896,2]
[401429473,1768206007583,200.0,0.00011996,2]
[401429474,1768206048906,3655.43,0.00011896,2]
[401429475,1768206063138,150.0,0.00011995,2]
[401429476,1768206070829,733.43063962,0.00011896,2]
[401429477,1768206093407,248.809,0.00011756,2]
[401429478,1768206093455,3826.611,0.00011756,2]
[401429479,1768206100597,151.0,0.00011996,2]
[401429480,1768206100642,151.0,0.00011996,2]
[401429482,1768206125781,151.0,0.00011996,2]
[401429483,1768206125926,157.87082151,0.00011996,2]
[401429484,1768206125956,342.12917849,0.00011996,2]
[401429485,1768206129081,151.0,0.00011996,2]
[401429486,1768206129867,151.0,0.00011996,2]
[401429487,1768206130032,151.0,0.00011996,2]
[401429488,1768206130498,151.0,0.00011996,2]
[401429489,1768206130641,151.0,0.00011996,2]
[401429490,1768206131140,151.0,0.00011996,2]
[401429491,1768206131264,151.0,0.00011996,2]
[401429492,1768206131755,151.0,0.00011996,2]
[401429493,1768206131888,151.0,0.00011996,2]
[401429494,1768206132376,151.0,0.00011996,2]
[401429495,1768206132483,151.0,0.00011996,2]
[401429496,1768206132981,151.0,0.00011996,2]
[401429497,1768206133306,151.0,0.00011996,2]
[401429498,1768206133730,151.0,0.00011996,2]
[401429499,1768206134917,151.0,0.00011996,2]
[401429500,1768206135126,151.0,0.00011996,2]
[401429501,1768206135254,151.0,0.00011996,2]
[401429502,1768206135494,151.0,0.00011996,2]
[401429503,1768206135611,151.0,0.00011996,2]
[401429504,1768206135843,151.0,0.00011996,2]
[401429505,1768206136126,151.0,0.00011996,2]
[401429506,1768206136554,151.0,0.00011996,2]
[401429507,1768206136754,151.0,0.00011996,2]
[401429508,1768206137154,151.0,0.00011996,2]
[401429509,1768206137297,200.0,0.00011996,2]
[401429510,1768206137410,151.0,0.00011996,2]
[401429511,1768206137772,151.0,0.00011996,2]
[401429512,1768206138020,151.0,0.00011996,2]
[401429513,1768206138630,151.0,0.00011996,2]
[401429514,1768206139253,151.0,0.00011996,2]
[401429515,1768206139346,200.0,0.00011996,2]
[401429516,1768206139902,151.0,0.00011996,2]
[401429517,1768206140530,151.0,0.00011996,2]
[401429518,1768206141177,151.0,0.00011996,2]
[401429519,1768206144503,166.81736794,0.00011896,2]
[401429520,1768206150717,167.42,9.627e-05,2]
[401429521,1768206151116,167.42,0.00010589,2]
[401429522,1768206151310,167.42,0.00011552,2]
[401429523,1768206161762,2167.77,0.00011969,2]
[401429525,1768206181388,300.0,0.00011995,2]
[401429526,1768206196135,554.0,0.00011995,2]
[401429527,1768206204045,580.74,0.0001194,2]
[401429528,1768206214203,154.29345357,0.00011995,2]
[401429529,1768206214272,818.50571941,0.00011995,2]
[401429530,1768206241344,300.0,0.00011995,2]
[401429531,1768206241628,300.0,0.00011995,2]
[401429532,1768206241933,300.0,0.00011995,2]
[401429533,1768206243631,150.0,0.00011995,2]
[401429534,1768206284781,166.81736793,0.00011896,2]
[401429535,1768206290967,7964.68691266,0.00011896,2]
[401429536,1768206291051,6693.20042032,0.00011896,2]
[401429537,1768206300313,3306.80957968,0.00011986,2]
[401429538,1768206300380,10000.01,0.00011986,2]
[401429539,1768206300457,4891.05663347,0.00011986,2]
[401429540,1768206301600,1200.0,0.00011995,2]
[401429541,1768206302785,152.06497503,0.00011896,2]
[401429543,1768206339825,10000.01,0.00011936,2]
[401429544,1768206339907,494.127804,0.00011936,2]
[401429545,1768206353309,785.10094642,0.00011896,2]
[401429546,1768206358180,8720.78124958,8e-05,2]
[401429547,1768206358266,7785.31459607,8e-05,2]
[401429548,1768206361365,300.0,0.00011995,2]
[401429549,1768206375894,1914.69540393,0.00011896,2]
[401429550,1768206375973,1226.04729607,0.00011896,2]
[401429551,1768206378229,1000.0,0.00011995,2]
[401429552,1768206382001,2500.0,0.00011896,2]
[401429553,1768206401529,151.0,0.00011996,2]
[401429554,1768206402661,161.68427531,0.00011996,2]
[401429555,1768206407903,500.0,0.00011995,2]
[401429556,1768206408007,500.0,0.00011995,2]
[401429557,1768206408121,500.0,0.00011995,2]
[401429558,1768206408226,500.0,0.00011995,2]
[401429559,1768206408328,500.0,0.00011995,2]
[401429560,1768206408433,500.0,0.00011995,2]
[401429561,1768206408555,500.0,0.00011995,2]
[401429562,1768206408663,500.0,0.00011995,2]
[401429563,1768206408757,500.0,0.00011995,2]
[401429564,1768206408850,461.27842862,0.00011995,2]
[401429565,1768206408927,38.72157138,0.00011995,2]
[401429566,1768206409019,328.77327787,0.00011995,2]
[401429567,1768206409129,500.0,0.00011995,2]
[401429568,1768206409233,500.0,0.00011995,2]
[401429569,1768206409331,500.0,0.00011995,2]
[401429570,1768206409445,500.0,0.00011995,2]
[401429572,1768206414251,7632.51515075,0.00011896,2]
[401429573,1768206414438,3073.38686602,0.00011896,2]
[401429574,1768206415433,166.81736793,0.00011896,2]
[401429575,1768206421961,300.0,0.00011995,2]
[401429576,1768206422511,300.0,0.00011995,2]
[401429577,1768206422883,150.0,0.00011995,2]
[401429578,1768206432210,306.46934365,0.00011996,2]
[401429579,1768206433016,301.69227512,0.00011996,2]
[401429580,1768206436691,535.77874767,0.00011996,2]
[401429581,1768206437107,500.0,0.000119,4]
[401429582,1768206437208,151.0,0.00011996,2]
[401429583,1768206437250,-839.64336134,0.00011996,2]
[401429584,1768206437765,151.0,0.00011996,2]
[401429585,1768206438382,151.0,0.00011996,2]
[401429586,1768206439012,151.0,0.00011996,2]
[401429587,1768206439720,1100.0,0.000139,5]
[401429588,1768206439887,151.0,0.00011996,2]
[401429589,1768206440214,151.0,0.00011996,2]
[401429590,1768206442550,5379.30382061,0.000202,30]
[401429591,1768206446335,151.0,0.00011996,2]
[401429592,1768206446988,151.0,0.00011996,2]
[401429593,1768206447697,151.0,0.00011996,2]
[401429594,1768206448436,151.0,0.00011996,2]
[401429595,1768206449107,151.0,0.00011996,2]
[401429596,1768206450466,151.0,0.00011996,2]
[401429597,1768206450724,151.0,0.00011996,2]
[401429598,1768206457958,2902.86539961,0.00011896,2]
[401429599,1768206458047,127.08500039,0.00011896,2]
[401429601,1768206489026,7496.012094,7.945e-05,2]
[401429602,1768206492403,2376.91290561,0.00011896,2]
[401429603,1768206492492,10000.01,0.00011896,2]
[401429604,1768206492575,10000.01,0.00011896,2]
[401429610,1768206530764,-379.99487605,0.00011301,2]
[401429611,1768206546055,-3931.65,0.00011801,2]
[401429612,1768206546571,-2136.71,0.00011801,2]
[401429613,1768206546657,-334.65119671,0.00011895,2]
[401429614,1768206546745,-500.0,0.00011895,2]
[401429615,1768206546826,-274.60231859,0.00011895,2]
[401429616,1768206546899,-459.96996587,0.00011895,2]
[401429617,1768206546976,-220.23646644,0.00011895,2]
[401429618,1768206547052,-344.41954599,0.00011895,2]
[401429619,1768206547123,-167.73428703,0.00011895,2]
[401429620,1768206549335,-3893.21907097,0.00011896,2]
[401429621,1768206553116,-28636.35177462,0.00011896,2]
[401429622,1768206558136,-840.97498518,0.00011301,2]
[401429623,1768206565709,-82.61438382,0.00011301,2]
[401429624,1768206570777,-245.0,0.00011896,2]
[401429625,1768206576605,3893.99,6.025e-05,2]
[401429626,1768206577150,3893.99,6.329e-05,2]
[401429627,1768206577294,3893.99,6.634e-05,2]
[401429628,1768206577499,3893.99,6.939e-05,2]
[401429629,1768206577700,3893.99,7.243e-05,2]
[401429630,1768206577897,3893.99,7.548e-05,2]
[401429631,1768206578078,3893.99,7.853e-05,2]
[401429632,1768206578281,3893.99,8.157e-05,2]
[401429633,1768206578491,3893.99,8.462e-05,2]
[401429634,1768206578858,3893.99,8.767e-05,2]
[401429635,1768206579101,3893.99,9.071e-05,2]
[401429636,1768206579314,3893.99,9.376e-05,2]
[401429637,1768206579509,3893.99,9.681e-05,2]
[401429638,1768206579703,3893.99,9.985e-05,2]
[401429639,1768206586193,-3893.99,0.0001029,2]
[401429640,1768206586831,-3893.99,0.00010595,2]
[401429641,1768206587009,-3893.99,0.00010899,2]
[401429642,1768206587363,-3893.99,0.00011204,2]
[401429643,1768206587625,-3893.99,0.00011509,2]
[401429644,1768206587889,-3893.99,0.00011813,2]
[401429648,1768206606598,-247.0,0.00011796,2]
[401429649,1768206606699,-379.9949,0.00011796,2]
[401429650,1768206606788,-300.0,0.00011895,2]
[401429651,1768206606868,-286.0,0.00011895,2]
[401429652,1768206606948,-1200.0,0.00011895,2]
[401429653,1768206607026,-300.0,0.00011895,2]
[401429654,1768206607108,-300.0,0.00011895,2]
[401429655,1768206607187,-150.0,0.00011895,2]
[401429656,1768206607281,-500.0,0.00011895,2]
[401429657,1768206607387,-500.0,0.00011895,2]
[401429658,1768206607864,-500.0,0.00011895,2]
[401429659,1768206607964,-174.0202,0.00011895,2]
[401429660,1768206608425,-325.9798,0.00011895,2]
[401429661,1768206608530,-500.0,0.00011895,2]
[401429662,1768206608631,-500.0,0.00011895,2]
[401429663,1768206608733,-500.0,0.00011895,2]
[401429664,1768206608833,-282.87732779,0.00011895,2]
[401429665,1768206608930,-500.0,0.00011895,2]
[401429666,1768206609034,-500.0,0.00011895,2]
[401429667,1768206609128,-500.0,0.00011895,2]
[401429668,1768206609223,-500.0,0.00011895,2]
[401429669,1768206609320,-500.0,0.00011895,2]
[401429670,1768206609418,-282.29574442,0.00011895,2]
[401429671,1768206610007,-217.70425558,0.00011895,2]
[401429672,1768206610092,-500.0,0.00011895,2]
[401429673,1768206610185,-500.0,0.00011895,2]
[401429674,1768206610278,-500.0,0.00011895,2]
[401429675,1768206610374,-500.0,0.00011895,2]
[401429676,1768206610494,-500.0,0.00011895,2]
[401429677,1768206610605,-500.0,0.00011895,2]
[401429678,1768206610699,-500.0,0.00011895,2]
[401429679,1768206621175,-514.47564436,0.00011052,2]
[401429680,1768206623706,-2480.70265207,0.00011052,2]
[401429681,1768206623812,-1119.21541804,0.00011052,2]
[401429682,1768206623889,-281.83931929,0.00011052,2]
[401429683,1768206624176,-2883.63510289,0.00011052,2]
[401429684,1768206624252,-162.58813593,0.00011796,2]
[401429685,1768206624869,-193.82804188,0.00011896,2]
[401429695,1768206631857,-500.0,0.00011895,2]
[401429696,1768206631868,-500.0,0.00011895,2]
[401429697,1768206631878,-500.0,0.00011895,2]
[401429698,1768206631888,-500.0,0.00011895,2]
[401429699,1768206631898,-500.0,0.00011895,2]
[401429700,1768206631907,-500.0,0.00011895,2]
[401429701,1768206631917,-500.0,0.00011895,2]
[401429702,1768206631927,-500.0,0.00011895,2]
[401429703,1768206631937,-500.0,0.00011895,2]
[401429704,1768206631946,-706266.28662379,0.00011896,2]
[401429705,1768206631957,-50690.86596472,0.00011896,2]
[401429706,1768206631968,-23269.58882209,0.00011896,2]
[401429707,1768206631983,-9044.75461084,0.00011896,2]
[401429708,1768206631994,-9142.74451606,0.00011896,2]
[401429709,1768206632014,-434.30423461,0.00011896,2]
[401429710,1768206632024,-1707.54897056,0.00011896,2]
[401429711,1768206632035,-1199.16049217,0.00011896,2]
[401429712,1768206632047,-675.06,0.00011896,2]
[401429713,1768206632058,-437.436765,0.00011896,2]
[401429714,1768206632074,-1171.15387376,0.00011896,2]
[401429715,1768206632085,-544.02,0.00011896,2]
[401429717,1768206632100,-754.40370398,0.00011896,2]
[401429718,1768206632112,-559.2491887,0.00011896,2]
[401429722,1768206637948,-272.193821,0.000113,2]
[401429723,1768206637962,-14172.61746327,0.00011896,2]
[401429724,1768206637978,-19021.2241791,0.00011896,2]
[401429725,1768206637992,-613.44715983,0.00011896,2]
[401429726,1768206638009,-25174.38886887,0.00011896,2]
[401429727,1768206638068,-809.15187004,0.00011896,2]
[401429728,1768206638135,-5792.43317949,0.00011896,2]
[401429729,1768206638163,-456.0,0.00011896,2]
[401429738,1768206638292,-14159.915467,0.00011896,2]
[401429746,1768206639944,-857.63186119,0.00011896,2]
[401429747,1768206640081,-612.4781407,0.00011896,2]
[401429748,1768206640203,-1516.59381822,0.00011896,2]
[401429749,1768206640278,-42.44624834,0.00011896,2]
[401429750,1768206640293,-3685.84215815,0.00011896,2]
[401429751,1768206640308,-51843.92002644,0.00011896,2]
[401429752,1768206640321,-6154.1931,0.00011896,2]
[401429753,1768206640332,-1099.5249,0.00011896,2]
[401429754,1768206640344,-195.0,0.00011946,2]
[401429755,1768206640357,-1000.0,0.00011996,2]
[401429756,1768206640369,-195.0,0.00011996,2]
[401429757,1768206640382,-190.64342449,0.00011996,2]
[401429758,1768206640394,-300.0,0.00011996,2]
[401429759,1768206640406,-300.0,0.00011996,2]
[401429760,1768206640423,-250.0,0.00011997,2]
[401429761,1768206640435,-195.0,0.00011997,2]
[401429762,1768206640448,-300.0,0.00012,2]
[401429763,1768206640460,-353.68888451,0.00012009,2]
[401429764,1768206640472,-1102.94,0.00012055,2]
[401429765,1768206640484,-200.0,0.00012116,2]
[401429766,1768206640498,-5931.22,0.00012116,2]
[401429767,1768206640514,-150.99,0.00012116,2]
[401429768,1768206640526,-999.99,0.00012116,2]
[401429769,1768206640538,-499.99,0.00012116,2]
[401429770,1768206640552,-150.99,0.00012116,2]
[401429771,1768206640564,-9999.99,0.00012116,2]
[401429772,1768206640579,-500.0,0.00012118,2]
[401429773,1768206640592,-224.95,0.0001222,2]
[401429774,1768206640604,-166.66,0.00012329,2]
[401429775,1768206640616,-1801.08,0.0001239,2]
[401429776,1768206640631,-159.0,0.000124,2]
[401429777,1768206640642,-166.66,0.00012452,2]
[401429778,1768206640655,-348.0,0.00012487,2]
[401429779,1768206640666,-167.42,0.00012514,2]
[401429780,1768206640678,-1433.4,0.0001255,2]
[401429781,1768206640690,-10705.90201669,0.00012563,2]
[401429782,1768206640701,-1000.0,0.00012567,2]
[401429783,1768206640713,-166.66,0.00012575,2]
[401429784,1768206640724,-166.66,0.00012699,2]
[401429785,1768206640735,-166.66,0.00012822,2]
[401429786,1768206640747,-166.66,0.00012945,2]
[401429787,1768206640758,-217.25116724,0.00012951,2]
[401429788,1768206640770,-400.12201918,0.00012954,2]
[401429789,1768206640781,-152.06497503,0.00012968,2]
[401429790,1768206640792,-255.0,0.00012978,2]
[401429791,1768206640804,-2192.24184912,0.00012979,2]
[401429792,1768206640815,-62731.4134108,0.00013,2]
[401429793,1768206640827,-4423.34896406,0.00013,2]
[401429794,1768206640838,-420.0,0.0001306,2]
[401429795,1768206640850,-302.0,0.0001306,2]
[401429796,1768206640861,-420.0,0.0001306,2]
[401429797,1768206640872,-1131.1084579,0.00013068,2]
[401429798,1768206640883,-1680.0,0.00013085,2]
[401429799,1768206640894,-500.0,0.00013086,2]
[401429800,1768206640905,-195.0,0.00013086,2]
[401429801,1768206640917,-250.0,0.00013196,2]
[401429802,1768206640929,-300.0,0.00013196,2]
[401429803,1768206640941,-372.53890943,0.00013196,2]
[401429804,1768206640952,-193.0,0.00013196,2]
[401429805,1768206640964,-300.0,0.00013196,2]
[401429806,1768206640977,-195.0,0.00013196,2]
[401429807,1768206641002,-10705.90201669,0.0001323,2]
[401429808,1768206641017,-500.0,0.0001336,2]
[401429809,1768206641033,-167.42,0.00013477,2]
[401429810,1768206641047,-201.88,0.00013558,2]
[401429811,1768206641062,-500.0,0.00013698,2]
[401429812,1768206641075,-500.0,0.00013698,2]
[401429813,1768206641089,-500.0,0.00013698,2]
[401429814,1768206641103,-500.0,0.00013698,2]
[401429815,1768206641117,-507.98742565,0.00013698,2]
[401429816,1768206641129,-500.0,0.00013698,2]
[401429817,1768206641142,-500.0,0.00013698,2]
[401429818,1768206641157,-500.0,0.00013698,2]
[401429819,1768206641169,-500.0,0.00013698,2]
[401429820,1768206641183,-500.0,0.00013698,2]
[401429821,1768206641195,-500.0,0.00013698,2]
[401429822,1768206641209,-500.0,0.00013698,2]
[401429823,1768206641220,-500.0,0.00013698,2]
[401429824,1768206641233,-262.73857183,0.00013698,2]
[401429825,1768206641245,-519.22178049,0.00013698,2]
[401429826,1768206641258,-500.0,0.00013698,2]
[401429827,1768206641269,-500.0,0.00013698,2]
[401429828,1768206641283,-500.0,0.00013698,2]
[401429829,1768206641295,-500.0,0.00013698,2]
[401429830,1768206641307,-500.0,0.00013698,2]
[401429831,1768206641320,-500.0,0.00013698,2]
[401429832,1768206641333,-500.0,0.00013698,2]
[401429833,1768206641346,-500.0,0.00013698,2]
[401429834,1768206641359,-500.0,0.00013698,2]
[401429835,1768206641371,-500.0,0.00013698,2]
[401429836,1768206641383,-500.0,0.00013698,2]
[401429837,1768206641395,-500.0,0.00013698,2]
[401429838,1768206641406,-500.0,0.00013698,2]
[401429839,1768206641418,-500.0,0.00013698,2]
[401429840,1768206641429,-317.23562895,0.00013698,2]
[401429841,1768206641440,-1295.16,0.00013698,2]
[401429842,1768206641451,-500.0,0.00013698,2]
[401429843,1768206641463,-500.0,0.00013698,2]
[401429844,1768206641475,-500.0,0.00013698,2]
[401429845,1768206641486,-500.0,0.00013698,2]
[401429846,1768206641497,-500.0,0.00013698,2]
[401429847,1768206641515,-500.0,0.00013698,2]
[401429848,1768206641528,-500.0,0.00013698,2]
[401429849,1768206641540,-500.0,0.00013698,2]
[401429850,1768206641552,-500.70750239,0.00013698,2]
[401429851,1768206641564,-500.0,0.00013698,2]
[401429852,1768206641578,-500.0,0.00013698,2]
[401429853,1768206641590,-500.0,0.00013698,2]
[401429854,1768206641602,-500.0,0.00013698,2]
[401429855,1768206641614,-500.0,0.00013698,2]
[401429856,1768206641627,-500.0,0.00013698,2]
[401429857,1768206641639,-500.0,0.00013698,2]
[401429858,1768206641651,-520.50202631,0.00013698,2]
[401429859,1768206641663,-500.0,0.00013698,2]
[401429860,1768206641676,-500.0,0.00013698,2]
[401429861,1768206641688,-500.0,0.00013698,2]
[401429862,1768206641699,-500.0,0.00013698,2]
[401429863,1768206641711,-500.0,0.00013698,2]
[401429864,1768206641723,-500.0,0.00013698,2]
[401429865,1768206641734,-500.0,0.00013698,2]
[401429866,1768206641745,-500.0,0.00013698,2]
[401429867,1768206641757,-500.0,0.00013698,2]
[401429868,1768206641768,-500.0,0.00013698,2]
[401429869,1768206641780,-500.0,0.00013698,2]
[401429870,1768206641792,-500.0,0.00013698,2]
[401429871,1768206641803,-500.0,0.00013698,2]
[401429872,1768206641815,-542.67459147,0.00013698,2]
[401429873,1768206641826,-500.0,0.00013698,2]
[401429874,1768206641837,-500.0,0.00013698,2]
[401429875,1768206641849,-500.0,0.00013698,2]
[401429876,1768206641860,-502.89153827,0.00013698,2]
[401429877,1768206641871,-500.0,0.00013698,2]
[401429878,1768206641882,-559.68593167,0.00013698,2]
[401429879,1768206641894,-500.0,0.00013698,2]
[401429880,1768206641906,-500.0,0.00013698,2]
[401429881,1768206641918,-500.0,0.00013698,2]
[401429882,1768206641929,-500.0,0.00013698,2]
[401429883,1768206641941,-168.93,0.00013699,2]
[401429884,1768206641951,-844.65,0.00013699,2]
[401429885,1768206641962,-7736.08,0.00013699,2]
[401429886,1768206641974,-189.76,0.00013699,2]
[401429887,1768206641987,-500.0,0.00013699,2]
[401429888,1768206641999,-542.14884444,0.00013699,2]
[401429889,1768206642011,-500.0,0.00013699,2]
[401429890,1768206642025,-500.0,0.00013699,2]
[401429891,1768206642042,-587.42192138,0.0001371,2]
[401429892,1768206642055,-151.0,0.0001371,2]
[401429893,1768206642068,-1000.0,0.0001371,2]
[401429894,1768206642079,-1000.0,0.0001371,2]
[401429895,1768206642091,-1000.0,0.0001371,2]
[401429896,1768206642104,-1000.0,0.0001371,2]
[401429897,1768206642116,-1000.0,0.0001371,2]
[401429898,1768206642129,-1000.0,0.0001371,2]
[401429899,1768206642143,-1000.0,0.0001371,2]
[401429900,1768206642156,-1000.0,0.0001371,2]
[401429901,1768206642171,-1000.0,0.0001371,2]
[401429902,1768206642185,-1000.0,0.0001371,2]
[401429903,1768206642199,-1000.0,0.0001371,2]
[401429904,1768206642212,-1000.0,0.0001371,2]
[401429905,1768206642223,-1125.63397898,0.0001371,2]
[401429906,1768206642235,-250.0,0.0001371,2]
[401429907,1768206642249,-250.0,0.0001371,2]
[401429908,1768206642262,-250.0,0.0001371,2]
[401429909,1768206642273,-250.0,0.0001371,2]
[401429910,1768206642284,-266.15702234,0.0001371,2]
[401429911,1768206642295,-268.06518829,0.0001371,2]
[401429912,1768206642307,-250.0,0.0001371,2]
[401429913,1768206642317,-250.0,0.0001371,2]
[401429914,1768206642328,-250.0,0.0001371,2]
[401429915,1768206642339,-250.0,0.0001371,2]
[401429916,1768206642351,-250.0,0.0001371,2]
[401429917,1768206642363,-250.0,0.0001371,2]
[401429918,1768206642374,-270.2171612,0.0001371,2]
[401429919,1768206642387,-250.0,0.0001371,2]
[401429920,1768206642399,-262.80813108,0.0001371,2]
[401429921,1768206642417,-620.0,0.0001371,2]
[401429922,1768206642429,-322.6107,0.0001371,2]
[401429923,1768206642441,-533.88981491,0.0001371,2]
[401429924,1768206642453,-998.0,0.0001371,2]
[401429925,1768206642467,-311.1,0.0001371,2]
[401429926,1768206642479,-1131.10845788,0.00013873,2]
[401429927,1768206642492,-10705.90201669,0.00013897,2]
[401429928,1768206642508,-1295.16,0.00013972,2]
[401429929,1768206642520,-306.57,0.00013979,2]
[401429930,1768206642532,-5041.92423814,0.00014,2]
[401429931,1768206642548,-998.13686081,0.00014,2]
[401429932,1768206642559,-1433.4,0.00014119,2]
[401429933,1768206642573,-1000.0,0.00014138,2]
[401429934,1768206642585,-433.0,0.00014155,2]
[401429935,1768206642597,-13017.22,0.00014219,2]
[401429936,1768206642609,-1295.16,0.00014246,2]
[401429937,1768206642621,-151.0,0.00014258,2]
[401429938,1768206642636,-553.64373807,0.00014258,2]
[401429939,1768206642649,-322.6107,0.00014258,2]
[401429940,1768206642662,-587.0,0.00014338,2]
[401429941,1768206642676,-587.0,0.00014338,2]
[401429942,1768206642689,-3725.38333766,0.0001439,2]
[401429943,1768206642701,-2351.0,0.00014393,2]
[401429944,1768206642713,-1047.04298225,0.00014393,2]
[401429945,1768206642725,-33074.45,0.00014403,2]
[401429946,1768206642736,-200.0,0.00014421,2]
[401429947,1768206642752,-167.42,0.0001444,2]
[401429948,1768206642766,-1295.16,0.0001452,2]
[401429949,1768206642778,-369.79,0.00014537,2]
[401429950,1768206642790,-10705.90201669,0.00014564,2]
[401429951,1768206642802,-1131.10845788,0.00014679,2]
[401429952,1768206642815,-1295.16,0.00014794,2]
[401429953,1768206642827,-151.0,0.00014806,2]
[401429954,1768206643522,-574.12855637,0.00014806,2]
[401429955,1768206643552,-307.00510982,0.00014806,2]
[401429956,1768206643572,-1054.9037746,0.00014999,2]
[401429957,1768206643583,-1963.34171095,0.00015,2]
[401429958,1768206643592,-10140.94626068,0.00015,2]
[401429959,1768206643602,-33676.36113959,0.00015,2]
[401429960,1768206643611,-1295.16,0.00015068,2]
[401429961,1768206643622,-642.94,0.00015079,2]
[401429962,1768206643631,-334.5472959,0.00015079,2]
[401429963,1768206643641,-1950.1,0.00015116,2]
[401429964,1768206643651,-1681.88,0.00015219,2]
[401429965,1768206643660,-10705.90201669,0.00015232,2]
[401429966,1768206643670,-151.0,0.0001525,2]
[401429967,1768206643680,-151.0,0.0001527,2]
[401429968,1768206643690,-151.0,0.0001527,2]
[401429969,1768206643700,-151.0,0.0001527,2]
[401429970,1768206643710,-151.0,0.0001527,2]
[401429971,1768206643719,-500.0,0.00015275,2]
[401429972,1768206643728,-151.0,0.00015283,2]
[401429973,1768206643738,-151.0,0.00015283,2]